fUST/lending_fUST_20250330
["ID","MTS","AMOUNT","RATE_DAILY","PERIOD"]
[356863159,1743342646156,-151.0,0.00019178,2]
[356863161,1743342646167,-151.0,0.00019178,2]
[356863163,1743342646176,-413.352674,0.00019178,2]
[356863165,1743342646186,-413.352674,0.00019178,2]
[356863167,1743342646198,-413.352674,0.00019178,2]
[356863169,1743342646207,-413.352674,0.00019178,2]
[356863171,1743342646216,-413.352674,0.00019178,2]
[356863173,1743342646225,-413.352674,0.00019178,2]
[356863175,1743342646234,-151.0,0.00019178,2]
[356863177,1743342646243,-151.0,0.00019178,2]
[356863179,1743342646254,-151.0,0.00019178,2]
[356863181,1743342646264,-500.0,0.00019178,2]
[356863183,1743342646273,-345.788351,0.00019178,2]
[356863185,1743342646282,-345.788351,0.00019178,2]
[356863187,1743342646291,-345.788351,0.00019178,2]
[356863189,1743342646301,-345.788351,0.00019178,2]
[356863191,1743342646310,-345.788351,0.00019178,2]
[356863193,1743342646319,-345.788351,0.00019178,2]
[356863195,1743342646329,-64155.46,0.00019178,2]
[356863197,1743342646338,-500.0,0.00019178,2]
[356863199,1743342646347,-500.0,0.00019178,2]
[356863201,1743342646356,-151.0,0.00019178,2]
[356863203,1743342646365,-151.0,0.00019178,2]
[356863205,1743342646374,-151.0,0.00019178,2]
[356863207,1743342646384,-500.0,0.00019178,2]
[356863209,1743342646393,-500.0,0.00019178,2]
[356863211,1743342646402,-500.0,0.00019178,2]
[356863213,1743342646412,-360.328889,0.00019178,2]
[356863215,1743342646421,-360.328889,0.00019178,2]
[356863217,1743342646430,-360.328889,0.00019178,2]
[356863219,1743342646439,-360.328889,0.00019178,2]
[356863221,1743342646451,-360.328889,0.00019178,2]
[356863223,1743342646460,-360.328889,0.00019178,2]
[356863225,1743342646468,-500.0,0.00019178,2]
[356863227,1743342646478,-500.0,0.00019178,2]
[356863229,1743342646486,-500.0,0.00019178,2]
[356863231,1743342646495,-500.0,0.00019178,2]
[356863233,1743342646504,-161.431993,0.00019178,2]
[356863234,1743342646513,-161.431993,0.00019178,2]
[356863237,1743342646522,-161.431993,0.00019178,2]
[356863239,1743342646531,-161.431993,0.00019178,2]
[356863240,1743342646540,-161.431993,0.00019178,2]
[356863242,1743342646549,-161.431993,0.00019178,2]
[356863244,1743342646559,-155.896191,0.00019178,2]
[356863247,1743342646568,-500.0,0.00019178,2]
[356863248,1743342646577,-500.0,0.00019178,2]
[356863250,1743342646586,-500.0,0.00019178,2]
[356863253,1743342646595,-500.0,0.00019178,2]
[356863254,1743342646604,-500.0,0.00019178,2]
[356863257,1743342646614,-503.05,0.00019178,2]
[356863259,1743342646623,-500.0,0.00019178,2]
[356863260,1743342646632,-500.0,0.00019178,2]
[356863263,1743342646642,-151.0,0.00019329,2]
[356863264,1743342646651,-151.0,0.00019329,2]
[356863267,1743342646660,-235.62355649,0.00019329,2]
[356863268,1743342646669,-151.0,0.00019329,2]
[356863271,1743342646678,-151.0,0.00019329,2]
[356863273,1743342646687,-184.676653,0.00019329,2]
[356863275,1743342646699,-360.199093,0.00019329,2]
[356863276,1743342646708,-360.199093,0.00019329,2]
[356863279,1743342646718,-360.199093,0.00019329,2]
[356863281,1743342646732,-360.199093,0.00019329,2]
[356863283,1743342646741,-589.469834,0.00019329,2]
[356863285,1743342646750,-234.595097,0.00019329,2]
[356863286,1743342646759,-234.595097,0.00019329,2]
[356863289,1743342646769,-1291.985508,0.00019329,2]
[356863290,1743342646778,-1291.985508,0.00019329,2]
[356863293,1743342646788,-594.606623,0.00019329,2]
[356863295,1743342646797,-594.606623,0.00019329,2]
[356863296,1743342646807,-1816.553734,0.00019329,2]
[356863298,1743342646816,-1816.553734,0.00019329,2]
[356863301,1743342646825,-7212.317276,0.00019329,2]
[356863303,1743342646836,-7212.317276,0.00019329,2]
[356863305,1743342646845,-195.571578,0.00019329,2]
[356863306,1743342646854,-195.571578,0.00019329,2]
[356863309,1743342646864,-195.571578,0.00019329,2]
[356863311,1743342646873,-195.571578,0.00019329,2]
[356863312,1743342646882,-151.0,0.00019329,2]
[356863315,1743342646892,-151.0,0.00019329,2]
[356863316,1743342646901,-413.352674,0.00019329,2]
[356863318,1743342646910,-413.352674,0.00019329,2]
[356863321,1743342646920,-413.352674,0.00019329,2]
[356863322,1743342646929,-413.352674,0.00019329,2]
[356863325,1743342646938,-151.0,0.00019329,2]
[356863327,1743342646950,-151.0,0.00019329,2]
[356863329,1743342646959,-345.788351,0.00019329,2]
[356863331,1743342646968,-345.788351,0.00019329,2]
[356863332,1743342646977,-345.788351,0.00019329,2]
[356863335,1743342646986,-345.788351,0.00019329,2]
[356863336,1743342646995,-162.46632,0.00019329,2]
[356863339,1743342647005,-360.328889,0.00019329,2]
[356863340,1743342647014,-360.328889,0.00019329,2]
[356863342,1743342647024,-360.328889,0.00019329,2]
[356863344,1743342647033,-360.328889,0.00019329,2]
[356863346,1743342647042,-161.431993,0.00019329,2]
[356863348,1743342647051,-161.431993,0.00019329,2]
[356863351,1743342647060,-161.431993,0.00019329,2]
[356863353,1743342647070,-161.431993,0.00019329,2]
[356863355,1743342647079,-100000.0,0.00019329,2]
[356863357,1743342647088,-500.0,0.00019373,2]
[356863358,1743342647097,-151.0,0.00019452,2]
[356863360,1743342647107,-151.0,0.00019452,2]
[356863363,1743342647116,-411.38,0.00019452,2]
[356863364,1743342647126,-151.0,0.00019452,2]
[356863366,1743342647135,-184.676653,0.00019452,2]
[356863369,1743342647145,-360.199093,0.00019452,2]
[356863370,1743342647154,-360.199093,0.00019452,2]
[356863372,1743342647164,-589.469834,0.00019452,2]
[356863375,1743342647173,-234.595097,0.00019452,2]
[356863377,1743342647182,-234.595097,0.00019452,2]
[356863379,1743342647191,-1199.14,0.00019452,2]
[356863381,1743342647202,-1291.985508,0.00019452,2]
[356863382,1743342647211,-1291.985508,0.00019452,2]
[356863384,1743342647220,-594.606623,0.00019452,2]
[356863387,1743342647231,-594.606623,0.00019452,2]
[356863389,1743342647240,-1816.553734,0.00019452,2]
[356863391,1743342647249,-1816.553734,0.00019452,2]
[356863393,1743342647258,-7212.317276,0.00019452,2]
[356863395,1743342647266,-195.571578,0.00019452,2]
[356863397,1743342647275,-195.571578,0.00019452,2]
[356863399,1743342647285,-151.0,0.00019452,2]
[356863401,1743342647295,-413.352674,0.00019452,2]
[356863403,1743342647304,-413.352674,0.00019452,2]
[356863404,1743342647313,-151.0,0.00019452,2]
[356863406,1743342647322,-500.0,0.00019452,2]
[356863408,1743342647331,-345.788351,0.00019452,2]
[356863411,1743342647341,-345.788351,0.00019452,2]
[356863412,1743342647350,-38281.39122611,0.00019452,2]
[356863415,1743342647363,-5527.02974145,0.00019452,2]
[356864039,1743342668621,155.14635784,0.00012518,2]
[356864040,1743342830374,206.85,0.00010959,2]
[356864041,1743342840964,172.37,0.00010959,2]
[356864042,1743342851508,861.89,0.00010959,2]
[356864043,1743343273748,-4844.85364216,0.00012518,2]
[356864044,1743343273772,-1980.4938658,0.000128,2]
[356864045,1743343273795,-742.7999125,0.000136,2]
[356864046,1743343273819,-10613.48567251,0.00013696,2]
[356864047,1743343273844,-500.0,0.00013696,2]
[356864048,1743343273868,-551.1259794,0.00013696,2]
[356864049,1743343273891,-511.28238403,0.00013696,2]
[356864050,1743343273919,-500.0,0.00013696,2]
[356864051,1743343273951,-500.0,0.00013696,2]
[356864052,1743343273978,-500.0,0.00013696,2]
[356864053,1743343274006,-500.0,0.00013696,2]
[356864054,1743343274033,-500.0,0.00013696,2]
[356864055,1743343274062,-500.0,0.00013696,2]
[356864056,1743343274088,-344.15044689,0.00013696,2]
[356864057,1743343274113,-373.52442384,0.00013698,2]
[356864058,1743343274137,-151.0,0.00013699,2]
[356864059,1743343274161,-151.0,0.00013699,2]
[356864060,1743343274185,-151.0,0.00013699,2]
[356864061,1743343274208,-151.0,0.00013699,2]
[356864062,1743343274231,-383.155392,0.00013699,2]
[356864063,1743343274257,-383.155392,0.00013699,2]
[356864064,1743343274281,-383.155392,0.00013699,2]
[356864065,1743343274304,-151.0,0.00013699,2]
[356864066,1743343274327,-151.0,0.00013699,2]
[356864067,1743343274351,-383.155392,0.00013699,2]
[356864068,1743343274375,-383.155392,0.00013699,2]
[356864069,1743343274399,-151.0,0.00013699,2]
[356864070,1743343274422,-383.155392,0.00013699,2]
[356864071,1743343274446,-151.0,0.00013699,2]
[356864072,1743343274469,-230.93772132,0.00013699,2]
[356864073,1743343274496,-677.97571145,0.00013699,2]
[356864074,1743343274524,-677.97571145,0.00013699,2]
[356864075,1743343274550,-677.97571145,0.00013699,2]
[356864076,1743343274577,-677.97571145,0.00013699,2]
[356864077,1743343274604,-677.97571145,0.00013699,2]
[356864078,1743343274632,-677.97571145,0.00013699,2]
[356864079,1743343274659,-677.97571145,0.00013699,2]
[356864080,1743343274686,-677.97571145,0.00013699,2]
[356864081,1743343274713,-677.97571145,0.00013699,2]
[356864082,1743343274740,-677.97571145,0.00013699,2]
[356864083,1743343274769,-677.97571145,0.00013699,2]
[356864084,1743343274796,-677.97571145,0.00013699,2]
[356864085,1743343274821,-677.97571145,0.00013699,2]
[356864086,1743343274848,-677.97571145,0.00013699,2]
[356864087,1743343274874,-677.97571145,0.00013699,2]
[356864088,1743343274900,-677.97571145,0.00013699,2]
[356864089,1743343274930,-677.97571145,0.00013699,2]
[356864090,1743343274956,-677.97571145,0.00013699,2]
[356864091,1743343274983,-677.97571145,0.00013699,2]
[356864092,1743343275010,-677.97571145,0.00013699,2]
[356864093,1743343275225,-677.97571145,0.00013699,2]
[356864094,1743343275265,-677.97571145,0.00013699,2]
[356864095,1743343275293,-677.97571145,0.00013699,2]
[356864096,1743343275322,-677.97571145,0.00013699,2]
[356864097,1743343275348,-677.97571145,0.00013699,2]
[356864098,1743343275376,-677.97571145,0.00013699,2]
[356864099,1743343275404,-677.97571145,0.00013699,2]
[356864100,1743343275431,-677.97571145,0.00013699,2]
[356864101,1743343275458,-677.97571145,0.00013699,2]
[356864102,1743343275485,-677.97571145,0.00013699,2]
[356864103,1743343275514,-677.97571145,0.00013699,2]
[356864104,1743343275542,-677.97571145,0.00013699,2]
[356864105,1743343275570,-677.97571145,0.00013699,2]
[356864106,1743343275598,-427.2151217,0.00013699,2]
[356864107,1743343645140,-224.65612109,0.00012399,2]
[356864487,1743343761104,-36.8109756,0.00012399,2]
[356864488,1743343761129,-427.12782743,0.00012399,2]
[356864489,1743343761149,-55451.14408867,0.000124,2]
[356864490,1743343761172,-4188.11733974,0.00012418,2]
[356865133,1743343838049,-510.0,0.00012,2]
[356865674,1743343942403,-300.0,0.00012,2]
[356865926,1743344296143,-1971.44052854,0.000119,2]
[356865927,1743344296175,-2356.0,0.00012,2]
[356865928,1743344296202,-811.88266026,0.00012418,2]
[356865929,1743344296228,-1792.11142441,0.00013599,2]
[356865930,1743344296253,-500.0,0.000136,2]
[356865931,1743344296281,-183.02696768,0.00013698,2]
[356865932,1743344296305,-13009.34079118,0.00013699,2]
[356865933,1743344296335,-537.41935104,0.00013699,2]
[356865934,1743344296363,-537.41935104,0.00013699,2]
[356865935,1743344296390,-537.41935104,0.00013699,2]
[356865936,1743344296417,-537.41935104,0.00013699,2]
[356865937,1743344296446,-537.41935104,0.00013699,2]
[356865938,1743344296474,-537.41935104,0.00013699,2]
[356865939,1743344296501,-537.41935104,0.00013699,2]
[356865940,1743344296528,-537.41935104,0.00013699,2]
[356865941,1743344296555,-76.84281961,0.00013699,2]
[356865942,1743344297577,-460.57653143,0.00013699,2]
[356865943,1743344297607,-537.41935104,0.00013699,2]
[356865944,1743344297636,-537.41935104,0.00013699,2]
[356865945,1743344297677,-537.41935104,0.00013699,2]
[356865946,1743344297707,-537.41935104,0.00013699,2]
[356865947,1743344297736,-537.41935104,0.00013699,2]
[356865948,1743344297766,-537.41935104,0.00013699,2]
[356865949,1743344297795,-537.41935104,0.00013699,2]
[356865950,1743344297824,-537.41935104,0.00013699,2]
[356865951,1743344297852,-537.41935104,0.00013699,2]
[356865952,1743344297880,-537.41935104,0.00013699,2]
[356865953,1743344298125,-537.41935104,0.00013699,2]
[356865954,1743344298158,-537.41935104,0.00013699,2]
[356865955,1743344298189,-537.41935104,0.00013699,2]
[356865956,1743344298219,-537.41935104,0.00013699,2]
[356865957,1743344298248,-537.41935104,0.00013699,2]
[356865958,1743344298281,-537.41935104,0.00013699,2]
[356865959,1743344298311,-537.41935104,0.00013699,2]
[356865960,1743344298340,-537.41935104,0.00013699,2]
[356865961,1743344298371,-537.41935104,0.00013699,2]
[356865962,1743344298399,-537.41935104,0.00013699,2]
[356865963,1743344298427,-537.41935104,0.00013699,2]
[356865964,1743344298456,-537.41935104,0.00013699,2]
[356865965,1743344298484,-537.41935104,0.00013699,2]
[356865966,1743344298512,-537.41935104,0.00013699,2]
[356865967,1743344298540,-537.41935104,0.00013699,2]
[356865968,1743344298567,-537.41935104,0.00013699,2]
[356865969,1743344298595,-537.41935104,0.00013699,2]
[356865970,1743344298623,-537.41935104,0.00013699,2]
[356865971,1743344298650,-537.41935104,0.00013699,2]
[356865972,1743344298679,-537.41935104,0.00013699,2]
[356865973,1743344298708,-537.41935104,0.00013699,2]
[356865974,1743344298736,-537.41935104,0.00013699,2]
[356865975,1743344298765,-534.06048009,0.00013699,2]
[356865976,1743344298794,-534.06048009,0.00013699,2]
[356865977,1743344298823,-534.06048009,0.00013699,2]
[356865978,1743344298852,-534.06048009,0.00013699,2]
[356865979,1743344298887,-534.06048009,0.00013699,2]
[356865980,1743344298916,-534.06048009,0.00013699,2]
[356865981,1743344298944,-534.06048009,0.00013699,2]
[356865982,1743344298974,-534.06048009,0.00013699,2]
[356865983,1743344299002,-534.06048009,0.00013699,2]
[356865984,1743344299031,-534.06048009,0.00013699,2]
[356865985,1743344299063,-534.06048009,0.00013699,2]
[356865986,1743344299093,-534.06048009,0.00013699,2]
[356865987,1743344299122,-534.06048009,0.00013699,2]
[356865988,1743344299154,-399.21799412,0.00013699,2]
[356865989,1743344299208,-134.84248597,0.00013699,2]
[356865990,1743344299237,-534.06048009,0.00013699,2]
[356865991,1743344299266,-534.06048009,0.00013699,2]
[356865992,1743344299302,-534.06048009,0.00013699,2]
[356865993,1743344299332,-534.06048009,0.00013699,2]
[356865994,1743344299362,-534.06048009,0.00013699,2]
[356865995,1743344299391,-534.06048009,0.00013699,2]
[356865996,1743344299419,-534.06048009,0.00013699,2]
[356865997,1743344299446,-534.06048009,0.00013699,2]
[356865998,1743344299475,-534.06048009,0.00013699,2]
[356865999,1743344299502,-534.06048009,0.00013699,2]
[356866000,1743344299529,-534.06048009,0.00013699,2]
[356866001,1743344299556,-534.06048009,0.00013699,2]
[356866002,1743344299584,-534.06048009,0.00013699,2]
[356866003,1743344299611,-534.06048009,0.00013699,2]
[356866004,1743344299640,-534.06048009,0.00013699,2]
[356866005,1743344299670,-534.06048009,0.00013699,2]
[356866006,1743344299699,-534.06048009,0.00013699,2]
[356866007,1743344299727,-534.06048009,0.00013699,2]
[356866008,1743344299755,-534.06048009,0.00013699,2]
[356866009,1743344299782,-534.06048009,0.00013699,2]
[356866010,1743344299810,-534.06048009,0.00013699,2]
[356866011,1743344299838,-534.06048009,0.00013699,2]
[356866012,1743344299865,-534.06048009,0.00013699,2]
[356866013,1743344299893,-534.06048009,0.00013699,2]
[356866014,1743344299921,-534.06048009,0.00013699,2]
[356866015,1743344299948,-534.06048009,0.00013699,2]
[356866016,1743344299976,-534.06048009,0.00013699,2]
[356866017,1743344300004,-534.06048009,0.00013699,2]
[356866018,1743344300032,-534.06048009,0.00013699,2]
[356866019,1743344300060,-534.06048009,0.00013699,2]
[356866020,1743344300087,-534.06048009,0.00013699,2]
[356866021,1743344300114,-534.06048009,0.00013699,2]
[356866022,1743344300144,-534.06048009,0.00013699,2]
[356866023,1743344300172,-534.06048009,0.00013699,2]
[356866024,1743344300197,-500.0,0.000137,2]
[356866025,1743344300224,-500.0,0.000137,2]
[356866026,1743344300249,-500.0,0.000137,2]
[356866027,1743344300279,-500.0,0.000137,2]
[356866028,1743344300304,-500.0,0.000137,2]
[356866029,1743344300331,-500.0,0.000137,2]
[356866030,1743344300357,-500.0,0.000137,2]
[356866031,1743344300383,-500.0,0.000137,2]
[356866032,1743344300408,-500.0,0.000137,2]
[356866033,1743344300433,-500.0,0.000137,2]
[356866034,1743344323406,1707.10119097,0.00012318,2]
[356866072,1743344638544,270.81,0.00010959,2]
[356866073,1743344649071,225.68,0.00010959,2]
[356866074,1743344659643,188.06,0.00010959,2]
[356866075,1743344670184,156.72,0.00010959,2]
[356866089,1743344849137,-2281.82709118,0.00012073,2]
[356866094,1743344945094,-1011.07171785,0.00011952,2]
[356866095,1743344945117,-3292.89880903,0.00012318,2]
[356866106,1743345000525,312.1825109,0.00010959,2]
[356866107,1743345000550,340.26923969,0.00010959,2]
[356866108,1743345000575,131.17824941,0.00010959,2]
[356866136,1743345032358,-324.725029,0.00012218,2]
[356866137,1743345032456,-4675.274971,0.00012218,2]
[356866138,1743345032466,-500.0,0.00013563,2]
[356866139,1743345032475,-1741.38405739,0.00016,2]
[356866140,1743345032484,-179.074784,0.00016425,2]
[356866141,1743345032494,-151.0,0.000165,2]
[356866142,1743345032507,-151.0,0.000165,2]
[356866143,1743345032516,-151.0,0.000165,2]
[356866144,1743345032525,-151.0,0.000165,2]
[356866145,1743345032535,-151.0,0.000165,2]
[356866146,1743345032544,-151.0,0.000165,2]
[356866147,1743345032554,-151.0,0.000165,2]
[356866148,1743345032563,-151.0,0.000165,2]
[356866149,1743345032574,-300.0,0.00016509,2]
[356866150,1743345032588,-242.45405595,0.0001651,2]
[356866151,1743345032597,-500.0,0.0001651,2]
[356866152,1743345032606,-589.87227333,0.0001651,2]
[356866153,1743345032616,-500.0,0.0001651,2]
[356866154,1743345032625,-589.87227333,0.0001651,2]
[356866155,1743345032634,-500.0,0.0001651,2]
[356866156,1743345032643,-500.0,0.0001651,2]
[356866157,1743345032652,-589.87227333,0.0001651,2]
[356866158,1743345032661,-500.0,0.0001651,2]
[356866159,1743345032671,-589.87227333,0.0001651,2]
[356866160,1743345032680,-500.0,0.0001651,2]
[356866161,1743345032689,-500.0,0.0001651,2]
[356866162,1743345032698,-589.87227333,0.0001651,2]
[356866163,1743345032707,-500.0,0.0001651,2]
[356866164,1743345032716,-589.87227333,0.0001651,2]
[356866165,1743345032725,-500.0,0.0001651,2]
[356866166,1743345032734,-589.87227333,0.0001651,2]
[356866167,1743345032743,-500.0,0.0001651,2]
[356866168,1743345032753,-589.87227333,0.0001651,2]
[356866169,1743345032762,-184.61479903,0.0001651,2]
[356866170,1743345032772,-589.87227333,0.0001651,2]
[356866171,1743345032781,-589.87227333,0.0001651,2]
[356866172,1743345032791,-500.0,0.0001651,2]
[356866173,1743345032801,-589.87227333,0.0001651,2]
[356866174,1743345032811,-589.87227333,0.0001651,2]
[356866175,1743345032821,-589.87227333,0.0001651,2]
[356866176,1743345032830,-589.87227333,0.0001651,2]
[356866177,1743345032839,-589.87227333,0.0001651,2]
[356866178,1743345032849,-589.87227333,0.0001651,2]
[356866179,1743345032859,-589.87227333,0.0001651,2]
[356866180,1743345032868,-589.87227333,0.0001651,2]
[356866181,1743345032878,-589.87227333,0.0001651,2]
[356866182,1743345032887,-589.87227333,0.0001651,2]
[356866183,1743345032896,-589.87227333,0.0001651,2]
[356866184,1743345032906,-589.87227333,0.0001651,2]
[356866185,1743345032915,-589.87227333,0.0001651,2]
[356866186,1743345032925,-589.87227333,0.0001651,2]
[356866187,1743345032934,-589.87227333,0.0001651,2]
[356866188,1743345032943,-589.87227333,0.0001651,2]
[356866189,1743345032952,-378.87679547,0.0001651,2]
[356866202,1743345038192,-12836.44576786,0.0001651,2]
[356866203,1743345038202,-210.99547786,0.0001651,2]
[356866204,1743345038211,-589.87227333,0.0001651,2]
[356866205,1743345038220,-589.87227333,0.0001651,2]
[356866206,1743345038230,-589.87227333,0.0001651,2]
[356866207,1743345038239,-589.87227333,0.0001651,2]
[356866208,1743345038248,-589.87227333,0.0001651,2]
[356866209,1743345038257,-589.87227333,0.0001651,2]
[356866210,1743345038267,-589.87227333,0.0001651,2]
[356866211,1743345038276,-589.87227333,0.0001651,2]
[356866213,1743345038285,-589.87227333,0.0001651,2]
[356866215,1743345038294,-589.87227333,0.0001651,2]
[356866217,1743345038303,-1597.68348758,0.0001651,2]
[356866219,1743345038313,-636.41101536,0.0001651,2]
[356866220,1743345038325,-961.27247222,0.0001651,2]
[356866221,1743345038334,-29.04344979,0.0001651,2]
[356866222,1743345038345,-499.14562154,0.0001651,2]
[356866223,1743345038357,-1069.49441625,0.0001651,2]
[356866224,1743345038366,-1597.68348758,0.0001651,2]
[356866225,1743345038375,-1597.68348758,0.0001651,2]
[356866226,1743345038384,-1597.68348758,0.0001651,2]
[356866227,1743345038393,-587.67944368,0.0001651,2]
[356866243,1743345040546,-320.17165751,0.00016345,2]
[356866244,1743345042121,199.49,0.00010959,2]
[356866252,1743345044283,-417.07529672,0.00016345,2]
[356866256,1743345045634,-239.43594885,0.00016345,2]
[356866257,1743345045644,-1010.0040439,0.0001651,2]
[356866258,1743345045653,-250.95972521,0.0001651,2]
[356866259,1743345045665,-701.69092961,0.0001651,2]
[356866260,1743345045677,-645.03283276,0.0001651,2]
[356866261,1743345045687,-1529.96716749,0.0001651,2]
[356866279,1743345047937,-67.71632009,0.0001651,2]
[356866280,1743345047946,-1597.68348758,0.0001651,2]
[356866281,1743345047956,-1597.68348758,0.0001651,2]
[356866282,1743345047965,-1597.68348758,0.0001651,2]
[356866283,1743345047975,-589.23321717,0.0001651,2]
[356866284,1743345047986,-847.7,0.0001651,2]
[356866285,1743345047998,-160.75027041,0.0001651,2]
[356866286,1743345048007,-1597.68348758,0.0001651,2]
[356866287,1743345048016,-1597.68348758,0.0001651,2]
[356866288,1743345048026,-1597.68348758,0.0001651,2]
[356866289,1743345048036,-1597.68348758,0.0001651,2]
[356866290,1743345048046,-1597.68348758,0.0001651,2]
[356866291,1743345048055,-1597.68348758,0.0001651,2]
[356866292,1743345048066,-1597.68348758,0.0001651,2]
[356866293,1743345048075,-1597.68348758,0.0001651,2]
[356866294,1743345048086,-1597.68348758,0.0001651,2]
[356866295,1743345048096,-391.11491646,0.0001651,2]
[356866296,1743345048107,-426.25335024,0.0001651,2]
[356866299,1743345119575,300.0,0.00014,10]
[356866302,1743345187809,410.89,0.00011,2]
[356866321,1743345363874,642.36,0.00010959,2]
[356866322,1743345374428,642.36,0.00010959,2]
[356866351,1743345632337,239.39,0.00010959,2]
[356866354,1743345773101,-2801.7116655,0.00015506,2]
[356866355,1743345773325,-858.69306504,0.0001586,2]
[356866356,1743345773351,-1903.07707461,0.00016405,2]
[356866357,1743345773378,-1570.50546216,0.00016407,2]
[356866358,1743345773405,-300.0,0.00016409,2]
[356866359,1743345773430,-5000.0,0.0001641,2]
[356866360,1743345773455,-178.76622005,0.00016473,2]
[356866361,1743345773480,-195.04178639,0.00016504,2]
[356866362,1743345773505,-543.81685309,0.00016504,2]
[356866363,1743345773530,-278.90944049,0.00016504,2]
[356866364,1743345773555,-238.30203973,0.00016504,2]
[356866365,1743345773581,-500.0,0.00016504,2]
[356866366,1743345773611,-500.0,0.00016504,2]
[356866367,1743345773637,-500.0,0.00016504,2]
[356866368,1743345773664,-500.0,0.00016504,2]
[356866369,1743345773693,-500.0,0.00016504,2]
[356866370,1743345773720,-500.0,0.00016504,2]
[356866371,1743345773746,-500.0,0.00016504,2]
[356866372,1743345773779,-500.0,0.00016504,2]
[356866373,1743345773810,-500.0,0.00016504,2]
[356866374,1743345773837,-500.0,0.00016504,2]
[356866375,1743345773864,-500.0,0.00016504,2]
[356866376,1743345773890,-500.0,0.00016504,2]
[356866377,1743345773918,-500.0,0.00016504,2]
[356866378,1743345773947,-500.0,0.00016504,2]
[356866379,1743345773973,-500.0,0.00016504,2]
[356866380,1743345774002,-500.0,0.00016504,2]
[356866381,1743345774029,-500.0,0.00016504,2]
[356866382,1743345774055,-500.0,0.00016504,2]
[356866383,1743345774096,-500.0,0.00016504,2]
[356866384,1743345774127,-431.52627367,0.00016504,2]
[356866385,1743345774155,-500.0,0.00016504,2]
[356866386,1743345774185,-500.0,0.00016504,2]
[356866387,1743345774212,-500.0,0.00016504,2]
[356866388,1743345774243,-500.0,0.00016504,2]
[356866389,1743345774271,-500.0,0.00016504,2]
[356866390,1743345774302,-500.0,0.00016504,2]
[356866391,1743345774330,-500.0,0.00016504,2]
[356866392,1743345774361,-500.0,0.00016504,2]
[356866393,1743345774389,-500.0,0.00016504,2]
[356866394,1743345774417,-270.65011927,0.00016504,2]
[356866396,1743345778597,-343.59788207,0.00016339,2]
[356866397,1743345778623,-229.34988073,0.00016504,2]
[356866398,1743345778652,-500.0,0.00016504,2]
[356866399,1743345778679,-500.0,0.00016504,2]
[356866400,1743345778708,-500.0,0.00016504,2]
[356866401,1743345778734,-500.0,0.00016504,2]
[356866402,1743345778762,-500.0,0.00016504,2]
[356866403,1743345778791,-500.0,0.00016504,2]
[356866404,1743345778818,-500.0,0.00016504,2]
[356866405,1743345778848,-500.0,0.00016504,2]
[356866406,1743345778874,-500.0,0.00016504,2]
[356866407,1743345778900,-500.0,0.00016504,2]
[356866408,1743345778930,-500.0,0.00016504,2]
[356866409,1743345778957,-500.0,0.00016504,2]
[356866410,1743345778984,-500.0,0.00016504,2]
[356866411,1743345779010,-500.0,0.00016504,2]
[356866412,1743345779038,-500.0,0.00016504,2]
[356866413,1743345779064,-500.0,0.00016504,2]
[356866414,1743345779092,-500.0,0.00016504,2]
[356866415,1743345779121,-500.0,0.00016504,2]
[356866416,1743345779147,-500.0,0.00016504,2]
[356866417,1743345779175,-500.0,0.00016504,2]
[356866418,1743345779203,-500.0,0.00016504,2]
[356866419,1743345779233,-500.0,0.00016504,2]
[356866420,1743345779259,-500.0,0.00016504,2]
[356866421,1743345779288,-500.0,0.00016504,2]
[356866422,1743345779315,-500.0,0.00016504,2]
[356866423,1743345779344,-500.0,0.00016504,2]